[Event "FIDE WCCC G12 2018"]
[Site "Santiago de Compostela"]
[Date "2018.11.08"]
[Round "4"]
[White "Weersing, Abigail Riis"]
[Black "Mamardashvili, Ana"]
[Result "0-1"]
[ECO "D56"]
[WhiteElo "1649"]
[BlackElo "1527"]
[Annotator "NA RC"]
[PlyCount "118"]
[EventDate "2018.11.04"]
[EventType "swiss"]
[EventCountry "ESP"]
[SourceTitle "playchess.com"]
[Source "ChessBase"]
[SourceQuality "1"]
[TimeControl "40/5400+30:1800+30"]

1. d4 {[%emt 0:00:00]} d5 {[%emt 0:00:00]} 2. c4 {[%emt 0:00:00]} e6 {[%emt 0:00:00]} 3. Nc3 {[%emt 0:00:00]} Nf6 {[%emt 0:00:03]} 4. Bg5 {[%emt 0:00:00]} Be7 {[%emt 0:00:11]} 5. Nf3 {[%emt 0:00:00]} O-O {[%emt 0:00:16]} 6. e3 {[%emt 0:00:02]} h6 {[%emt 0:00:23]} 7. Bh4 {[%emt 0:00:05]} Ne4 {[%emt 0:00:29]} 8. Bxe7 {[%emt 0:00:17]} Qxe7 {[%emt 0:00:06]} 9. Qc2 {[%emt 0:04:05]} Nxc3 {[%emt 0:01:32]} 10. Qxc3 {[%emt 0:02:23]} c6 {[%emt 0:08:51]} 11. Be2 {[%emt 0:05:15]} dxc4 {[%emt 0:01:24]} 12. Qxc4 {[%emt 0:02:57]} Nd7 {[%emt 0:01:25]} 13. O-O {[%emt 0:02:15]} e5 {[%emt 0:04:34]} 14. dxe5 {[%emt 0:21:36]} Nxe5 {[%emt 0:00:09]} 15. Qb3 {[%emt 0:00:36]} Be6 {[%emt 0:03:27]} 16. Qc2 {[%emt 0:02:20]} Nxf3+ {[%emt 0:01:44]} 17. Bxf3 {[%emt 0:00:02]} Rfd8 {[%emt 0:03:32]} 18. b3 {[%emt 0:04:24]} Rac8 {[%emt 0:09:43]} 19. Rfd1 {[%emt 0:01:49]} Qf6 {[%emt 0:03:16]} 20. Rac1 {[%emt 0:08:30]} Bf5 {[%emt 0:08:36]} 21. Qe2 {[%emt 0:08:23]} Qe7 {[%emt 0:06:45]} 22. h3 {[%emt 0:02:23]} Rxd1+ {[%emt 0:05:40]} 23. Rxd1 {[%emt 0:01:00]} Rd8 {[%emt 0:00:13]} 24. Rd2 {[%emt 0:10:08]} Rd7 {[%emt 0:02:56]} 25. Qd1 {[%emt 0:01:39]} Qd8 {[%emt 0:02:56]} 26. Rxd7 {[%emt 0:01:11]} Qxd7 {[%emt 0:00:06]} 27. Qxd7 {[%emt 0:00:44]} Bxd7 {[%emt 0:00:05]} 28. Kf1 {[%emt 0:00:15]} a5 {[%emt 0:05:05]} 29. Ke2 {[%emt 0:01:24]} Kf8 {[%emt 0:01:02]} 30. Kd3 {[%emt 0:04:49]} Ke7 {[%emt 0:00:39]} 31. Kc3 {[%emt 0:00:52]} Kd6 {[%emt 0:01:36]} 32. Be2 {[%emt 0:03:42]} b6 {[%emt 0:06:22]} 33. f4 {[%emt 0:06:04]} Bc8 {[%emt 0:08:11]} 34. e4 {[%emt 0:01:51]} f6 {[%emt 0:01:45]} 35. Kd4 {[%emt 0:02:27]} c5+ {[%emt 0:00:40]} 36. Kc3 {[%emt 0:00:21]} Bd7 {[%emt 0:01:15]} 37. a4 {[%emt 0:00:52]} g5 {[%emt 0:02:27]} 38. fxg5 {[%emt 0:02:40]} fxg5 {[%emt 0:00:51]} 39. Bf3 {[%emt 0:01:09]} Ke5 {[%emt 0:00:23]} 40. Kc4 {[%emt 0:00:00]} Be6+ {[%emt 0:00:00]} 41. Kc3 {[%emt 0:04:45]} Kf4 {[%emt 0:03:22]} 42. Kc2 {[%emt 0:01:19]} Ke3 {[%emt 0:02:44]} 43. Kc3 {[%emt 0:01:48]} Bf7 {[%emt 0:03:03]} 44. Kb2 {[%emt 0:01:13]} Kd3 {[%emt 0:01:43]} 45. Bg4 {[%emt 0:21:25]} Kxe4 {[%emt 0:00:22]} 46. Kc3 {[%emt 0:00:05]} Ke3 {[%emt 0:02:23]} 47. Bf3 {[%emt 0:00:53]} Be6 {[%emt 0:01:07]} 48. Bc6 {[%emt 0:02:24]} Kf2 {[%emt 0:01:42]} 49. Bb7 {[%emt 0:00:46]} h5 {[%emt 0:01:37]} 50. Bc6 {[%emt 0:00:39]} g4 {[%emt 0:01:30]} 51. hxg4 {[%emt 0:00:01]} hxg4 {[%emt 0:00:16]} 52. Bb7 {[%emt 0:00:36]} g3 {[%emt 0:00:11]} 53. Bf3 {[%emt 0:00:23]} Bh3 {[%emt 0:00:58]} 54. Kc4 {[%emt 0:00:31]} Bxg2 {[%emt 0:00:09]} 55. Bxg2 {[%emt 0:00:04]} Kxg2 {[%emt 0:00:03]} 56. Kb5 {[%emt 0:00:06]} Kh2 {[%emt 0:00:08]} 57. Kxb6 {[%emt 0:00:05]} g2 {[%emt 0:00:03]} 58. Kxa5 {[%emt 0:00:22]} g1=Q {[%emt 0:00:10]} 59. Kb5 {[%emt 0:00:06]} Qb1 {[%emt 0:01:10]} 0-1

[Event "FIDE WCCC G12 2018"]
[Site "Santiago de Compostela"]
[Date "2018.11.08"]
[Round "4"]
[White "Denic, Hana"]
[Black "Schiopu, Oana-Magdalena"]
[Result "0-1"]
[ECO "B28"]
[WhiteElo "1636"]
[BlackElo "1526"]
[Annotator "NA RC"]
[PlyCount "106"]
[EventDate "2018.11.04"]
[EventType "swiss"]
[EventCountry "ESP"]
[SourceTitle "playchess.com"]
[Source "ChessBase"]
[SourceQuality "1"]
[TimeControl "40/5400+30:1800+30"]

1. e4 {[%emt 0:00:00]} c5 {[%emt 0:00:00]} 2. Nf3 {[%emt 0:00:00]} a6 {[%emt 0:00:13]} 3. Nc3 {[%emt 0:00:20]} d6 {[%emt 0:08:55]} 4. d4 {[%emt 0:12:25]} cxd4 {[%emt 0:00:39]} 5. Nxd4 {[%emt 0:00:08]} e6 {[%emt 0:02:36]} 6. Be3 {[%emt 0:01:17]} Be7 {[%emt 0:01:39]} 7. Qd2 {[%emt 0:01:37]} Nd7 {[%emt 0:01:20]} 8. O-O-O {[%emt 0:03:43]} Ngf6 {[%emt 0:03:25]} 9. f3 {[%emt 0:01:49]} Qc7 {[%emt 0:06:44]} 10. g4 {[%emt 0:04:19]} h6 {[%emt 0:02:56]} 11. h4 {[%emt 0:04:05]} b5 {[%emt 0:04:03]} 12. a3 {[%emt 0:07:18]} Rb8 {[%emt 0:05:18]} 13. Bd3 {[%emt 0:30:01]} Ne5 {[%emt 0:14:45]} 14. g5 {[%emt 0:05:39]} Nfd7 {[%emt 0:05:00]} 15. f4 {[%emt 0:11:43]} Nc4 {[%emt 0:03:43]} 16. Qe1 {[%emt 0:00:43]} h5 {[%emt 0:10:27]} 17. g6 {[%emt 0:00:48]} b4 {[%emt 0:05:11]} 18. gxf7+ {[%emt 0:03:43]} Kxf7 {[%emt 0:00:10]} 19. axb4 {[%emt 0:02:40]} Rxb4 {[%emt 0:02:09]} 20. Bxc4 {[%emt 0:01:31]} Qxc4 {[%emt 0:00:39]} 21. Nb3 {[%emt 0:00:33]} Qc7 {[%emt 0:02:51]} 22. Nd5 {[%emt 0:00:45]} exd5 {[%emt 0:00:19]} 23. Qxb4 {[%emt 0:00:11]} dxe4 {[%emt 0:00:10]} 24. Qxe4 {[%emt 0:02:22]} Bb7 {[%emt 0:00:15]} 25. Qf5+ {[%emt 0:00:12]} Nf6 {[%emt 0:00:06]} 26. Rh2 {[%emt 0:03:05]} Be4 {[%emt 0:00:44]} 27. Qa5 {[%emt 0:00:10]} Qb7 {[%emt 0:01:14]} 28. Qb6 {[%emt 0:01:22]} Qc8 {[%emt 0:01:16]} 29. c3 {[%emt 0:00:32]} Bh7 {[%emt 0:02:04]} 30. Nd4 {[%emt 0:00:41]} Be4 {[%emt 0:02:14]} 31. Re2 {[%emt 0:01:00]} Nd7 {[%emt 0:03:13]} 32. Qb3+ {[%emt 0:00:28]} d5 {[%emt 0:00:05]} 33. Rdd2 {[%emt 0:00:49]} Nc5 {[%emt 0:00:15]} 34. Qb6 {[%emt 0:00:18]} Rh6 {[%emt 0:01:25]} 35. Qa7 {[%emt 0:00:41]} Rd6 {[%emt 0:01:06]} 36. Nc2 {[%emt 0:00:28]} Rd7 {[%emt 0:00:19]} 37. Qb6 {[%emt 0:00:30]} Rb7 {[%emt 0:00:10]} 38. Bxc5 {[%emt 0:00:28]} Rxb6 {[%emt 0:00:46]} 39. Bxb6 {[%emt 0:00:04]} Bxh4 {[%emt 0:00:27]} 40. Nb4 {[%emt 0:00:00]} Qb7 {[%emt 0:00:00]} 41. Bf2 {[%emt 0:03:19]} Bf6 {[%emt 0:04:40]} 42. Bd4 {[%emt 0:01:08]} Be7 {[%emt 0:00:48]} 43. Nd3 {[%emt 0:01:31]} Qb5 {[%emt 0:00:57]} 44. Nf2 {[%emt 0:01:48]} Bf5 {[%emt 0:00:52]} 45. Bxg7 {[%emt 0:08:04]} h4 {[%emt 0:08:34]} 46. Bd4 {[%emt 0:02:51]} h3 {[%emt 0:02:23]} 47. Re1 {[%emt 0:01:33]} Bh4 {[%emt 0:01:09]} 48. Rh1 {[%emt 0:01:03]} Bxf2 {[%emt 0:00:28]} 49. Bxf2 {[%emt 0:00:18]} Qa4 {[%emt 0:00:06]} 50. Re2 {[%emt 0:01:16]} Qa1+ {[%emt 0:00:10]} 51. Kd2 {[%emt 0:00:08]} Qxb2+ {[%emt 0:00:37]} 52. Kd1 {[%emt 0:00:47]} Qb1+ {[%emt 0:00:05]} 53. Kd2 {[%emt 0:00:06]} Qc2+ {[%emt 0:00:05]} 0-1

[Event "FIDE WCCC G12 2018"]
[Site "Santiago de Compostela"]
[Date "2018.11.08"]
[Round "4"]
[White "Ke, Rianne"]
[Black "Karmanova, Olga Dm."]
[Result "1-0"]
[ECO "B07"]
[WhiteElo "1600"]
[BlackElo "1819"]
[Annotator "NA RC"]
[PlyCount "40"]
[EventDate "2018.11.04"]
[EventType "swiss"]
[EventCountry "ESP"]
[SourceTitle "playchess.com"]
[Source "ChessBase"]
[SourceQuality "1"]
[TimeControl "40/5400+30:1800+30"]

{[%evp 12,40,0,-14,10,-54,-41,-32,-41,-40,-44,-44,0,-3,12,-14,-19,-33,28,18,328,110,76,70,461,95,32767,90,167,191,604]} 1. e4 {[%emt 0:00:00]} d6 {[%emt 0:00:00]} 2. d4 {[%emt 0:00:00]} Nf6 {[%emt 0:00:00]} 3. Nc3 {[%emt 0:00:00]} c6 {[%emt 0:00:05]} 4. f4 {[%emt 0:00:26]} Qa5 {[%emt 0:00:08]} 5. Bd3 {[%emt 0:02:38]} e5 {[%emt 0:01:24]} 6. dxe5 {[%emt 0:01:57]} dxe5 {[%emt 0:00:21]} 7. fxe5 {[%emt 0:03:07]} Ng4 {[%emt 0:04:53] LiveBook: 7 Games} 8. h3 {[%emt 0:04:32] B07: Pirc Defence: Miscellaneous Systems} (8. Nf3 $11) (8. Qe2 Nxe5 9. Nf3 Bg4 10. Bd2 Nbd7 11. O-O-O Qc7 12. h3 Bh5 13. Kb1 Bd6 14. g4 Nxf3 15. Qxf3 Bg6 16. Ne2 Ne5 17. Qe3 f6 18. Nd4 Bf7 19. Nf5 O-O-O 20. Qxa7 g6 21. Ba5 b6 22. Ba6+ {1-0 (22) Kravtsiv,M (2549)-Akobian,V (2606) Beijing 2008}) 8... Nxe5 {[%emt 0:02:11]} 9. Nf3 {[%emt 0:01:07]} Bd6 {[%emt 0:07:12]} 10. O-O {[%emt 0:06:02]} O-O {[%emt 0:05:32]} 11. Kh1 {[%emt 0:05:32]} Ng6 $146 {[%emt 0:04:20]} ({Predecessor:} 11... Nbd7 12. Nh4 Bc7 13. Bd2 Qc5 14. Nf5 Ng6 15. Qe2 Nf6 {½-½ (45) Meingast,M (2092)-Gauch,M (2127) Neumuenster 2000}) 12. e5 {[%emt 0:20:20]} Bxe5 {[%emt 0:03:47]} 13. Nxe5 {[%emt 0:01:26]} (13. Bd2 $14) 13... Qxe5 {[%emt 0:09:43]} 14. Ne4 {[%emt 0:08:15]} c5 {[%emt 0:05:47]} ({Besser ist} 14... Bf5 $15 15. Re1 Bxe4 16. Bxe4 Qf6) 15. Ng5 {[%emt 0:04:46]} h6 $2 {[%emt 0:13:27] [#]} (15... Nd7 $1 $11 {and Black is okay.}) 16. Nxf7 $2 {[%emt 0:05:03]} (16. Bxg6 $1 $18 {is the precise move to win.} hxg5 {[#]} 17. Bxf7+ $1 {[%mdl 512]} Rxf7 18. Qd8+ Kh7 19. Rxf7 Qe1+ 20. Kh2 Qe5+ 21. Kg1) 16... Rxf7 {[%emt 0:01:29]} 17. Bxg6 {[%emt 0:00:54]} Rxf1+ {[%emt 0:01:37]} 18. Qxf1 {[%emt 0:00:04]} Be6 {[%emt 0:01:42]} 19. Bxh6 {[%emt 0:06:32]} gxh6 {[%emt 0:08:47]} (19... Nd7 $16) 20. Re1 {[%emt 0:00:16]} Nc6 $18 {[%emt 0:01:34]} (20... Qd6) 1-0

[Event "FIDE WCCC G12 2018"]
[Site "Santiago de Compostela"]
[Date "2018.11.08"]
[Round "4"]
[White "Menon, Gauri"]
[Black "Enkhsaran, Batsaikhan"]
[Result "0-1"]
[ECO "A09"]
[WhiteElo "1592"]
[BlackElo "1614"]
[Annotator "NA"]
[PlyCount "80"]
[EventDate "2018.11.04"]
[EventType "swiss"]
[EventCountry "ESP"]
[SourceTitle "playchess.com"]
[Source "ChessBase"]
[SourceQuality "1"]
[TimeControl "40/5400+30:1800+30"]

1. Nf3 {[%emt 0:00:00]} d5 {[%emt 0:00:00]} 2. c4 {[%emt 0:00:00]} d4 {[%emt 0:00:22]} 3. e3 {[%emt 0:00:00]} Nc6 {[%emt 0:00:40]} 4. exd4 {[%emt 0:00:35]} Nxd4 {[%emt 0:00:18]} 5. Nxd4 {[%emt 0:00:13]} Qxd4 {[%emt 0:00:14]} 6. Nc3 {[%emt 0:01:09]} c6 {[%emt 0:00:59]} 7. d3 {[%emt 0:01:02]} Nh6 {[%emt 0:01:20]} 8. Be3 {[%emt 0:01:23]} Qd8 {[%emt 0:00:48]} 9. Be2 {[%emt 0:03:29]} g6 {[%emt 0:03:53]} 10. O-O {[%emt 0:03:56]} Nf5 {[%emt 0:00:41]} 11. Qd2 {[%emt 0:03:47]} Bg7 {[%emt 0:01:53]} 12. Rad1 {[%emt 0:01:24]} Nd4 {[%emt 0:01:26]} 13. Bxd4 {[%emt 0:08:40]} Qxd4 {[%emt 0:02:23]} 14. Qe3 {[%emt 0:01:20]} Be6 {[%emt 0:05:22]} 15. Bf3 {[%emt 0:05:48]} O-O {[%emt 0:04:36]} 16. Qxd4 {[%emt 0:08:21]} Bxd4 {[%emt 0:00:21]} 17. Ne2 {[%emt 0:01:28]} Rad8 {[%emt 0:07:23]} 18. b4 {[%emt 0:09:47]} Bg7 {[%emt 0:08:15]} 19. Nf4 {[%emt 0:08:39]} Bc8 {[%emt 0:01:07]} 20. a4 {[%emt 0:05:04]} g5 {[%emt 0:03:13]} 21. Nh5 {[%emt 0:02:33]} Bd4 {[%emt 0:05:36]} 22. Ng3 {[%emt 0:03:25]} g4 {[%emt 0:00:52]} 23. Be2 {[%emt 0:00:55]} f5 {[%emt 0:00:37]} 24. Kh1 {[%emt 0:03:17]} f4 {[%emt 0:00:22]} 25. Ne4 {[%emt 0:01:26]} f3 {[%emt 0:00:37]} 26. gxf3 {[%emt 0:00:35]} gxf3 {[%emt 0:00:14]} 27. Rg1+ {[%emt 0:00:10]} Kh8 {[%emt 0:01:11]} 28. Bf1 {[%emt 0:00:59]} h6 {[%emt 0:06:34]} 29. Rd2 {[%emt 0:06:07]} Rf4 {[%emt 0:07:20]} 30. Rc2 {[%emt 0:08:47]} Be5 {[%emt 0:01:43]} 31. Ng3 {[%emt 0:04:47]} Rh4 {[%emt 0:01:15]} 32. b5 {[%emt 0:02:20]} Rdd4 {[%emt 0:00:27]} 33. Bh3 {[%emt 0:02:28]} Bxh3 {[%emt 0:05:05]} 34. Re1 {[%emt 0:00:19]} Rxd3 {[%emt 0:02:23]} 35. Rcc1 {[%emt 0:00:47]} Bxg3 {[%emt 0:00:36]} 36. fxg3 {[%emt 0:00:13]} Rhd4 {[%emt 0:00:20]} 37. Kg1 {[%emt 0:00:11]} Rd2 {[%emt 0:00:17]} 38. Rxe7 {[%emt 0:00:33]} f2+ {[%emt 0:00:13]} 39. Kh1 {[%emt 0:00:06]} Rd1+ {[%emt 0:00:06]} 40. Rxd1 Rxd1+ {[%emt 0:00:00]} 0-1

[Event "FIDE WCCC G12 2018"]
[Site "Santiago de Compostela"]
[Date "2018.11.08"]
[Round "4"]
[White "Toth, Manoush"]
[Black "Hernandez Tellez, Claudia"]
[Result "1/2-1/2"]
[ECO "B32"]
[WhiteElo "1576"]
[BlackElo "1721"]
[Annotator "NA"]
[PlyCount "56"]
[EventDate "2018.11.04"]
[EventType "swiss"]
[EventCountry "ESP"]
[SourceTitle "playchess.com"]
[Source "ChessBase"]
[SourceQuality "1"]
[TimeControl "40/5400+30:1800+30"]

1. e4 {[%emt 0:00:00]} c5 {[%emt 0:00:00]} 2. Nf3 {[%emt 0:00:00]} Nc6 {[%emt 0:00:12]} 3. d4 {[%emt 0:00:00]} cxd4 {[%emt 0:00:35]} 4. Nxd4 {[%emt 0:00:11]} g6 {[%emt 0:00:38]} 5. Nb3 {[%emt 0:03:56]} Bg7 {[%emt 0:04:19]} 6. Nc3 {[%emt 0:02:01]} Nf6 {[%emt 0:04:45]} 7. Be2 {[%emt 0:02:57]} O-O {[%emt 0:07:27]} 8. O-O {[%emt 0:01:31]} d6 {[%emt 0:06:01]} 9. Kh1 {[%emt 0:02:57]} a5 {[%emt 0:11:19]} 10. a4 {[%emt 0:06:27]} Nb4 {[%emt 0:04:52]} 11. Bg5 {[%emt 0:06:08]} Bd7 {[%emt 0:08:36]} 12. Nd4 {[%emt 0:08:04]} Bc6 {[%emt 0:02:30]} 13. Nxc6 {[%emt 0:06:49]} bxc6 {[%emt 0:00:39]} 14. f4 {[%emt 0:05:55]} Nd7 {[%emt 0:07:48]} 15. Rb1 {[%emt 0:09:14]} Nc5 {[%emt 0:09:23]} 16. Bd3 {[%emt 0:06:47]} Nbxd3 {[%emt 0:06:42]} 17. cxd3 {[%emt 0:00:47]} Ne6 {[%emt 0:00:16]} 18. Bh4 {[%emt 0:03:33]} Rb8 {[%emt 0:00:20]} 19. f5 {[%emt 0:07:09]} Nd4 {[%emt 0:01:28]} 20. fxg6 {[%emt 0:01:15]} fxg6 {[%emt 0:01:04]} 21. Rxf8+ {[%emt 0:01:45]} Qxf8 {[%emt 0:01:21]} 22. Bg5 {[%emt 0:02:07]} Qf7 {[%emt 0:04:44]} 23. Ne2 {[%emt 0:04:08]} Nxe2 {[%emt 0:03:42]} 24. Qxe2 {[%emt 0:00:20]} Rb4 {[%emt 0:04:22]} 25. Qc2 {[%emt 0:02:42]} Rxb2 {[%emt 0:01:07]} 26. Qc1 {[%emt 0:03:31]} Qf2 {[%emt 0:04:02]} 27. Rxb2 {[%emt 0:03:14]} Bxb2 {[%emt 0:00:11]} 28. Qd1 {[%emt 0:04:42]} Bc3 {[%emt 0:01:25]} 1/2-1/2

[Event "FIDE WCCC G12 2018"]
[Site "Santiago de Compostela"]
[Date "2018.11.08"]
[Round "4"]
[White "Mellor, Jessica"]
[Black "Wang, Ellen"]
[Result "0-1"]
[ECO "B23"]
[WhiteElo "1555"]
[BlackElo "1711"]
[Annotator "NA"]
[PlyCount "100"]
[EventDate "2018.11.04"]
[EventType "swiss"]
[EventCountry "ESP"]
[SourceTitle "playchess.com"]
[Source "ChessBase"]
[SourceQuality "1"]
[TimeControl "40/5400+30:1800+30"]

1. e4 {[%emt 0:00:00]} c5 {[%emt 0:00:00]} 2. Nc3 {[%emt 0:00:00]} Nc6 {[%emt 0:00:00]} 3. f4 {[%emt 0:00:08]} g6 {[%emt 0:00:00]} 4. Nf3 {[%emt 0:00:43]} Bg7 {[%emt 0:00:00]} 5. Bc4 {[%emt 0:01:29]} e6 {[%emt 0:00:00]} 6. a3 {[%emt 0:03:07]} Nge7 {[%emt 0:00:23]} 7. Ba2 {[%emt 0:00:44]} O-O {[%emt 0:01:34]} 8. O-O {[%emt 0:02:07]} d5 {[%emt 0:02:28]} 9. e5 {[%emt 0:04:05]} b6 {[%emt 0:02:53]} 10. d3 {[%emt 0:06:27]} Bb7 {[%emt 0:01:39]} 11. Qe1 {[%emt 0:01:53]} Nf5 {[%emt 0:04:39]} 12. g4 {[%emt 0:06:47]} Nfd4 {[%emt 0:01:02]} 13. Nxd4 {[%emt 0:02:23]} Nxd4 {[%emt 0:00:15]} 14. Qf2 {[%emt 0:02:59]} g5 {[%emt 0:10:57]} 15. Be3 {[%emt 0:10:11]} Nxc2 {[%emt 0:06:05]} 16. Qxc2 {[%emt 0:04:25]} d4 {[%emt 0:00:15]} 17. Qd2 {[%emt 0:13:14]} dxe3 {[%emt 0:02:35]} 18. Qxe3 {[%emt 0:03:03]} gxf4 {[%emt 0:01:09]} 19. Qxf4 {[%emt 0:07:10]} Qh4 {[%emt 0:09:01]} 20. Ne4 {[%emt 0:06:24]} Bxe4 {[%emt 0:04:49]} 21. Qxe4 {[%emt 0:03:03]} Rad8 {[%emt 0:00:23]} 22. Rf4 {[%emt 0:10:52]} Qg5 {[%emt 0:04:05]} 23. Raf1 {[%emt 0:01:39]} Rd4 {[%emt 0:14:01]} 24. Qe3 {[%emt 0:03:15]} Bh6 {[%emt 0:02:49]} 25. h4 {[%emt 0:05:03]} Qxh4 {[%emt 0:00:49]} 26. Kg2 {[%emt 0:01:01]} Rxf4 {[%emt 0:01:23]} 27. Rxf4 {[%emt 0:00:18]} Qg5 {[%emt 0:00:09]} 28. Kg3 {[%emt 0:00:10]} Rd8 {[%emt 0:00:05]} 29. Qf3 {[%emt 0:00:30]} Qxf4+ {[%emt 0:00:07]} 30. Qxf4 {[%emt 0:01:14]} Bxf4+ {[%emt 0:00:07]} 31. Kxf4 {[%emt 0:00:23]} Rxd3 {[%emt 0:00:07]} 32. Kg5 {[%emt 0:00:39]} Rd2 {[%emt 0:00:12]} 33. Kf6 {[%emt 0:00:26]} Rxb2 {[%emt 0:00:09]} 34. Bc4 {[%emt 0:00:33]} Rf2+ {[%emt 0:00:07]} 35. Ke7 {[%emt 0:00:12]} Rf4 {[%emt 0:00:08]} 36. Bb5 {[%emt 0:00:32]} Rxg4 {[%emt 0:00:11]} 37. Be8 {[%emt 0:00:16]} Rf4 {[%emt 0:00:06]} 38. Bd7 {[%emt 0:00:21]} c4 {[%emt 0:00:07]} 39. Ba4 {[%emt 0:00:48]} h5 {[%emt 0:00:10]} 40. Bc2 {[%emt 0:00:00]} h4 {[%emt 0:00:00]} 41. Ba4 {[%emt 0:06:22]} h3 {[%emt 0:00:18]} 42. Kd7 {[%emt 0:02:01]} h2 {[%emt 0:00:13]} 43. Bc6 {[%emt 0:03:16]} c3 {[%emt 0:00:09]} 44. Kc7 {[%emt 0:00:43]} c2 {[%emt 0:00:08]} 45. Kb7 {[%emt 0:00:09]} c1=Q {[%emt 0:00:07]} 46. Bg2 {[%emt 0:00:18]} h1=R {[%emt 0:00:13]} 47. Bxh1 {[%emt 0:00:25]} Qxh1+ {[%emt 0:00:05]} 48. Kb8 {[%emt 0:00:08]} Qc6 {[%emt 0:00:13]} 49. a4 {[%emt 0:01:17]} Rd4 {[%emt 0:00:08]} 50. a5 {[%emt 0:00:11]} Rd8+ {[%emt 0:00:07]} 0-1

[Event "FIDE WCCC G12 2018"]
[Site "Santiago de Compostela"]
[Date "2018.11.08"]
[Round "4"]
[White "Kaldarova, Ayaulym"]
[Black "Munkhzul, Davaakhuu"]
[Result "0-1"]
[ECO "B40"]
[WhiteElo "1526"]
[BlackElo "1781"]
[Annotator "NA RC"]
[PlyCount "144"]
[EventDate "2018.11.04"]
[EventType "swiss"]
[EventCountry "ESP"]
[SourceTitle "playchess.com"]
[Source "ChessBase"]
[SourceQuality "1"]
[TimeControl "40/5400+30:1800+30"]

1. e4 {[%emt 0:00:00]} c5 {[%emt 0:00:00]} 2. Nf3 {[%emt 0:00:00]} e6 {[%emt 0:00:00]} 3. d4 {[%emt 0:00:04]} cxd4 {[%emt 0:00:00]} 4. Nxd4 {[%emt 0:00:07]} Nf6 {[%emt 0:00:00]} 5. Nc3 {[%emt 0:00:34]} Nc6 {[%emt 0:00:04]} 6. Ndb5 {[%emt 0:01:01]} Bb4 {[%emt 0:00:10]} 7. a3 {[%emt 0:00:43]} Bxc3+ {[%emt 0:00:06]} 8. Nxc3 {[%emt 0:00:05]} d5 {[%emt 0:00:29]} 9. Bd3 {[%emt 0:03:55]} d4 {[%emt 0:05:33]} 10. Ne2 {[%emt 0:01:00]} O-O {[%emt 0:00:41]} 11. O-O {[%emt 0:00:48]} e5 {[%emt 0:04:11]} 12. f4 {[%emt 0:03:29]} exf4 {[%emt 0:04:43]} 13. Bxf4 {[%emt 0:01:51]} Nh5 {[%emt 0:01:11]} 14. Ng3 {[%emt 0:08:04]} Nxf4 {[%emt 0:03:12]} 15. Rxf4 {[%emt 0:04:46]} g6 {[%emt 0:03:58]} 16. Qd2 {[%emt 0:03:44]} Ne5 {[%emt 0:03:09]} 17. Raf1 {[%emt 0:04:12]} Be6 {[%emt 0:04:17]} 18. Qe2 {[%emt 0:11:13]} Rc8 {[%emt 0:03:47]} 19. Qd2 {[%emt 0:23:09]} Ng4 {[%emt 0:02:38]} 20. h3 {[%emt 0:06:04]} Ne3 {[%emt 0:01:27]} 21. R1f2 {[%emt 0:01:37]} Qb6 {[%emt 0:07:53]} 22. b3 {[%emt 0:06:17]} Qc5 {[%emt 0:01:21]} 23. Qb4 {[%emt 0:01:31]} b6 {[%emt 0:19:04]} 24. Nf1 {[%emt 0:05:23]} Nd1 {[%emt 0:06:09]} 25. Rd2 {[%emt 0:02:29]} Nc3 {[%emt 0:01:26]} 26. Ba6 {[%emt 0:02:00]} Rcd8 {[%emt 0:02:42]} 27. Qxc5 {[%emt 0:01:43]} bxc5 {[%emt 0:00:03]} 28. b4 {[%emt 0:02:01]} cxb4 {[%emt 0:01:50]} 29. axb4 {[%emt 0:00:04]} g5 {[%emt 0:00:13]} 30. Rf3 {[%emt 0:01:17]} Nxe4 {[%emt 0:00:17]} 31. Re2 {[%emt 0:01:43]} Nc3 {[%emt 0:05:20]} 32. Re5 {[%emt 0:00:48]} h6 {[%emt 0:00:48]} 33. Rd3 {[%emt 0:01:34]} Rd6 {[%emt 0:00:49]} 34. Ra5 {[%emt 0:01:22]} Rb8 {[%emt 0:01:14]} 35. b5 {[%emt 0:01:50]} Bc4 {[%emt 0:01:18]} 36. Rf3 {[%emt 0:00:41]} Bd5 {[%emt 0:00:57]} 37. Rd3 {[%emt 0:00:42]} Re8 {[%emt 0:03:56]} 38. Ng3 {[%emt 0:00:34]} Ne2+ {[%emt 0:01:02]} 39. Kf2 {[%emt 0:00:29]} Rf6+ {[%emt 0:00:42]} 40. Rf3 {[%emt 0:00:00]} Bxf3 {[%emt 0:00:00]} 41. gxf3 {[%emt 0:00:41]} Nf4 {[%emt 0:02:27]} 42. Ne4 {[%emt 0:02:25]} Rb6 {[%emt 0:00:16]} 43. Kg3 {[%emt 0:01:05]} f5 {[%emt 0:00:18]} 44. Nf2 {[%emt 0:02:52]} Re2 {[%emt 0:01:02]} 45. Bc8 {[%emt 0:02:19]} Rxc2 {[%emt 0:02:40]} 46. Bxf5 {[%emt 0:00:21]} Rc1 {[%emt 0:00:42]} 47. Nd3 {[%emt 0:01:20]} Nxd3 {[%emt 0:00:44]} 48. Bxd3 {[%emt 0:00:08]} Rc3 {[%emt 0:00:04]} 49. Be4 {[%emt 0:01:37]} Rc7 {[%emt 0:01:46]} 50. Bc6 {[%emt 0:01:44]} Rb8 {[%emt 0:01:31]} 51. Ra1 {[%emt 0:03:01]} Rd8 {[%emt 0:00:47]} 52. Kf2 {[%emt 0:00:39]} Re7 {[%emt 0:01:00]} 53. Be4 {[%emt 0:00:36]} d3 {[%emt 0:01:14]} 54. Rd1 {[%emt 0:01:19]} d2 {[%emt 0:00:17]} 55. Ke3 {[%emt 0:03:47]} Re5 {[%emt 0:00:11]} 56. Rxd2 {[%emt 0:00:27]} Rxd2 {[%emt 0:00:06]} 57. Kxd2 {[%emt 0:00:06]} Rxb5 {[%emt 0:00:14]} 58. Kc3 {[%emt 0:00:32]} Kg7 {[%emt 0:00:19]} 59. Kc4 {[%emt 0:00:20]} Rb2 {[%emt 0:00:09]} 60. Kc3 {[%emt 0:00:32]} Rf2 {[%emt 0:00:05]} 61. Kb4 {[%emt 0:00:39]} Kf6 {[%emt 0:00:19]} 62. Bc6 {[%emt 0:00:53]} Ke5 {[%emt 0:00:29]} 63. Ka5 {[%emt 0:01:37]} Kf4 {[%emt 0:00:09]} 64. Ka6 {[%emt 0:00:41]} Ra2+ {[%emt 0:00:09]} 65. Kb5 {[%emt 0:00:11]} Kg3 {[%emt 0:00:05]} 66. Bd7 {[%emt 0:00:30]} Kxf3 {[%emt 0:00:15]} 67. Be6 {[%emt 0:00:09]} Rb2+ {[%emt 0:00:08]} 68. Ka6 {[%emt 0:00:06]} Rb6+ {[%emt 0:00:03]} 69. Kxa7 {[%emt 0:00:07]} Rxe6 {[%emt 0:00:04]} 70. Kb7 {[%emt 0:01:44]} Ke4 {[%emt 0:00:13]} 71. Kc7 {[%emt 0:01:18]} Kd5 {[%emt 0:00:09]} 72. Kd7 {[%emt 0:00:20]} h5 {[%emt 0:00:06]} 0-1